Cogmind - Beta 13 @@@ ROGUE MODE // 2024.04.08 @ 16:22:24 Player: szymekc Result: Destroyed by S-27 Virus with Autogun Performance ------------- Evolutions (6) 3000 Regions Visited (17) 3400 Robots Destroyed (242) 1210 Value Destroyed (12525) 12525 Prototype IDs (31) 620 Alien Tech Used (0) 0 Bonus (8198) 8198 TOTAL SCORE: 28953 Bonus ------- Triggered High Security 500 High Alert Combat Kills 3576 Follower Combat Kills 1010 Entered Garrisons 800 Used RIF Installer 2000 Entered DSFs 500 Aligned with FarCom 300 Friendly Fire -488 Cogmind --------- Core Integrity 0/1150 Matter 266/300 Energy 98/100 System Corruption 7% Temperature Cool (0) Movement Core (50) Location -4/Upper Caves Parts ------- > --- POWER (1) -------- Backup Power III > --- PROPULSION (6) --- (None) > --- UTILITY (8) ------ Relay Coupler [Brawler] (27) > --- WEAPON (4) ------- Advanced Datajack > --- INVENTORY (5) ---- Superbattery (1500) Point Defense Array Peak State ------------ > --- POWER ------------ Quantum Reactor > --- PROPULSION ------- Biometal Heavy Treads Advanced Heavy Siege Treads Advanced Heavy Siege Treads > --- UTILITY ---------- Advanced Heat Sink Advanced Coolant Injector Huge Storage Unit Advanced Targeting Computer Improved Kinecellerator Layered Medium Armor Plating Improved Focal Shield Relay Coupler [Grunt] > --- WEAPON ----------- Enhanced Nova Cannon Enhanced Nova Cannon Enhanced Nova Cannon Enhanced Gauss Cannon > --- INVENTORY -------- Antimatter Reactor Light Quantum Reactor Biometal Heavy Treads Biometal Heavy Treads Advanced Heat Sink Superbattery Matter Compressor Advanced Trap Scanner Improved Kinecellerator Improved Focal Shield Thermal Shield Advanced Shield Generator Point Defense Array Relay Coupler [Grunt] Relay Coupler [Brawler] Relay Coupler [Behemoth] Long-range Tractor Beam Improved Field Recycling Unit Scatter Rocket Array Micro-nuke Launcher Advanced Datajack Remote Datajack [Rating: 147] Favorites ----------- Power Improved Deuterium Engine Engine Improved Deuterium Engine Power Core Micro Nuclear Core Reactor Quantum Reactor Propulsion Advanced Treads Treads Advanced Treads Leg Improved Aluminum Leg Wheel Compact Wheel Utility Huge Storage Unit Device Advanced Heat Sink Storage Huge Storage Unit Processor Advanced Targeting Computer Hackware Relay Coupler [Sentry] Protection Layered Medium Armor Plating Weapon Improved Assault Rifle Energy Gun Advanced Beam Rifle Energy Cannon Enhanced Nova Cannon Ballistic Gun Improved Assault Rifle Ballistic Cannon Enhanced Gauss Cannon Launcher Micro-nuke Launcher Special Weapon Remote Datajack Slashing Weapon Katana Special Melee Weapon Advanced Datajack Build | -11 -10 -10 -10 -9 -8 -8 -8 -7 -7 -7 -7 -6 -6 -5 -5 -4 -4 ------- Run | Yrd Mat Min Exi Min Mat Gar Mat Fac Gar Sto Gar Fac DSF Fac Gar Fac Upp Slots Evolved 12 | . . . . . 4 . . 2 . . . 2 . 2 . 2 . Power . | . . . . . . . . . . . . . . . . . . Propulsion 4 | . . . . . 2 . . . . . . . . . . 2 . Utility 6 | . . . . . 2 . . 1 . . . 2 . 1 . . . Weapon 2 | . . . . . . . . 1 . . . . . 1 . . . Parts Attached 223 | 2 20 1 . 2 27 8 26 16 8 1 13 2 8 5 25 56 3 Power 20 | . 3 . . . 4 2 2 1 1 . . . 1 . 1 4 1 Engine 10 | . 3 . . . 2 . 2 1 1 . . . . . . . 1 Core 6 | . . . . . 2 2 . . . . . . 1 . . 1 . Reactor 4 | . . . . . . . . . . . . . . . 1 3 . Propulsion 43 | 2 5 . . . 8 4 8 2 3 . 2 . 1 . 4 4 . Treads 26 | 2 2 . . . 2 . 4 2 3 . 2 . 1 . 4 4 . Leg 12 | . 2 . . . 6 4 . . . . . . . . . . . Wheel 5 | . 1 . . . . . 4 . . . . . . . . . . Hover . | . . . . . . . . . . . . . . . . . . Flight . | . . . . . . . . . . . . . . . . . . Utility 97 | . 5 1 . 2 10 . 10 8 2 1 9 2 1 4 13 28 1 Device 40 | . 2 . . . 5 . 3 1 . . 2 . . 1 7 19 . Storage 7 | . 2 1 . . 2 . 2 . . . . . . . . . . Processor 4 | . . . . . . . . 2 . . . 1 . . . 1 . Hackware 17 | . . . . . . . . 1 . 1 4 . . 2 4 4 1 Protection 29 | . 1 . . 2 3 . 5 4 2 . 3 1 1 1 2 4 . Artifact . | . . . . . . . . . . . . . . . . . . Weapon 63 | . 7 . . . 5 2 6 5 2 . 2 . 5 1 7 20 1 Energy Gun 1 | . . . . . . . 1 . . . . . . . . . . Energy Cannon 7 | . . . . . 2 . . . . . . . . . 1 4 . Ballistic Gun 15 | . 7 . . . 2 1 3 2 . . . . . . . . . Ballistic Cannon 10 | . . . . . . . . 1 2 . . . 1 1 2 3 . Launcher 16 | . . . . . 1 1 1 . . . 1 . 2 . 3 7 . Special Weapon 9 | . . . . . . . . 2 . . 1 . 2 . 1 3 . Impact Weapon . | . . . . . . . . . . . . . . . . . . Slashing Weapon 2 | . . . . . . . 1 . . . . . . . . 1 . Piercing Weapon . | . . . . . . . . . . . . . . . . . . Special Melee Weapon 3 | . . . . . . . . . . . . . . . . 2 1 Unidentified Prototypes 4 | . 1 . . . . . 2 . . . . . . . . 1 . Parts Lost 67 | . 3 . . 1 10 12 . 4 . . . . 4 . 3 30 . Power 9 | . 1 . . . 1 1 . 1 . . . . 1 . . 4 . Propulsion 19 | . 1 . . . 4 6 . . . . . . 1 . 1 6 . Utility 25 | . 1 . . 1 3 3 . 3 . . . . 1 . 1 12 . Weapon 14 | . . . . . 2 2 . . . . . . 1 . 1 8 . Highest Loss Streak 18 | . 2 . . 1 5 7 . 2 . . . . 4 . 3 18 . To Critical Strikes 1 | . . . . . . . . . . . . . . . . 1 . Average Slot Usage (%) 88 | . 90 100 100 100 92 79 95 86 84 84 89 86 93 93 88 78 6 Engine 5 | . 14 14 14 14 7 1 6 7 7 7 7 6 3 . . . 2 Reactor 1 | . . . . . . . . . . . . . . . 3 4 . Treads 21 | . 21 28 28 28 10 . 23 29 30 30 30 26 26 23 12 13 . Leg 3 | . 3 . . . 24 23 . . . . . . . . . . . Device 7 | . 2 . . . 11 7 8 3 . . 1 6 2 . 19 18 . Storage 8 | . 14 14 14 14 14 9 9 7 7 7 7 6 6 5 5 4 . Processor 1 | . . . . . . . . 1 . . . 6 6 5 5 4 . Hackware 3 | . . . . . . . . 1 . 4 7 6 6 12 6 5 2 Protection 12 | . 2 14 14 14 6 14 18 15 23 18 18 13 23 21 6 4 . Energy Cannon 1 | . . . . . 1 . . . . . . . . . . 7 . Ballistic Gun 7 | . 25 28 28 28 15 9 13 6 . . . . . . . . . Ballistic Cannon 5 | . . . . . . . . 4 7 7 7 6 6 11 15 6 . Launcher 1 | . . . . . . 6 2 . . . 2 . 1 . 3 1 . Special Weapon 1 | . . . . . . . . . 7 7 4 6 4 5 . 1 . Naked Turns 131 | . . . . . . . . . . . . . . . . 89 42 Heaviest Build 169 | 10 51 54 54 58 62 51 123 135 146 146 151 140 151 163 169 169 3 Greatest Support 235 | 40 46 46 46 46 92 61 88 88 104 104 104 74 74 72 155 235 3 Greatest Overweight (x) 12 | . 5 1 1 1 1 9 12 1 1 1 2 1 2 2 4 1 . Average Overweight (x) . | . 1 . 1 1 . 1 . 1 1 1 1 1 1 1 1 . . Largest Inventory Capacity 25 | 8 20 20 20 20 20 15 25 25 25 25 25 25 25 25 25 25 5 Average Capacity 22 | 8 17 16 20 20 16 15 21 25 25 25 25 25 25 25 25 24 5 Most Carried 25 | 6 16 16 17 18 17 15 25 25 25 25 25 24 23 23 25 25 5 Average Carried 20 | 6 12 15 16 17 14 13 19 22 24 25 24 23 21 19 24 22 3 Final Capacity 25 | 8 15 20 20 20 15 15 25 25 25 25 25 25 25 25 25 5 5 Final Carried 25 | 6 15 16 17 18 14 13 25 22 25 25 25 23 20 23 25 5 2 Class Distribution -------------------- 33% | Mutant 32% | Bothacker-Tank 16% | Tank 11% | Bothacker-Gunner 5% | Scavenger-Mutant Dominant Class ---------------- Mutant | -10/Materials Mutant | -10/Mines Mutant | -10/Exiles Mutant | -9/Mines Scavenger-Mutant | -8/Materials Mutant | -8/Garrison Mutant | -8/Materials Tank | -7/Factory Tank | -7/Garrison Bothacker-Tank | -7/Storage Bothacker-Tank | -7/Garrison Bothacker-Tank | -6/Factory Bothacker-Tank | -6/DSF Bothacker-Tank | -5/Factory Bothacker-Gunner | -5/Garrison Bothacker-Gunner | -4/Factory Mutant | -4/Upper Caves Resources | -11 -10 -10 -10 -9 -8 -8 -8 -7 -7 -7 -7 -6 -6 -5 -5 -4 -4 ----------- Run | Yrd Mat Min Exi Min Mat Gar Mat Fac Gar Sto Gar Fac DSF Fac Gar Fac Upp Matter Collected 7024 | 194 519 21 . 27 614 371 375 388 25 256 702 . 118 299 972 2141 2 Remotely 979 | . . . . . . . . . . . . . . . 378 601 . Salvage Created 7693 | . 616 . . . 909 331 369 398 25 84 350 . 306 40 728 3537 . Parts 365 | . 29 . . . 43 36 25 33 . 3 13 . 11 2 41 129 . Haulers Intercepted 2 | . 1 . . . . . 1 . . . . . . . . . . Recyclers Shooed 11 | . 1 . . . 3 . . 5 . . . . . 2 . . . Parts Field Recycled 98 | . . . . . . . 30 . . . 9 . . . 51 8 . Retrieved Matter 1086 | . . . . . . . 315 . . . 51 . . . 571 149 . Parts Self-Destructed . | . . . . . . . . . . . . . . . . . . Prevented . | . . . . . . . . . . . . . . . . . . Kills | -11 -10 -10 -10 -9 -8 -8 -8 -7 -7 -7 -7 -6 -6 -5 -5 -4 -4 ------- Run | Yrd Mat Min Exi Min Mat Gar Mat Fac Gar Sto Gar Fac DSF Fac Gar Fac Upp Combat Hostiles Destroyed 198 | . 15 . . . 18 27 3 8 . 2 16 . 9 1 33 66 . Guns 36 | . 15 . . . 10 3 3 5 . . . . . . . . . Cannons 55 | . . . . . 4 . . 3 . 2 8 . 2 1 8 27 . AOE 103 | . . . . . 4 24 . . . . 8 . 7 . 25 35 . Classes Destroyed 18 | . 4 . . . 5 2 3 2 . . . . . . 1 1 . Worker 12 | . . . . . . . 1 2 . . . . . . . 9 . Builder 11 | . . . . . 1 . . 1 . . . . . . . 9 . Tunneler 1 | . . . . . . . 1 . . . . . . . . . . Hauler 2 | . 1 . . . . . 1 . . . . . . . . . . Recycler 11 | . . . . . 2 . 1 2 . . . . . . . 6 . Mechanic 3 | . . . . . . . . 1 . . . . . . . 2 . Operator 1 | . . . . . . . 1 . . . . . . . . . . Watcher 5 | . 2 . . . . . 2 . . . . . . . . 1 . Swarmer 58 | . 5 . . . . 12 . . . . 6 . 4 . 21 10 . Grunt 74 | . 10 . . . 14 6 . 1 . 2 7 . 2 . 6 26 . Brawler 3 | . . . . . . . . . . . . . . . . 3 . Duelist 6 | . . . . . 1 2 . . . . . . . . . 3 . Protector 1 | . . . . . . . . . . . . . . . . 1 . Sentry 13 | . . . . . 2 2 2 1 . . . . . . 4 2 . Specialist 2 | . . . . . . 1 . . . . . . 1 . . . . Hunter 19 | . . . . . 1 1 1 2 . . 2 . 1 . 2 9 . Programmer 19 | . . . . . . 3 . 3 . . 1 . . 1 . 11 . Heavy 3 | . . . . . . . . 1 . . . . 1 . . 1 . Savage 1 | . . . . . . . . . . . . . . . 1 . . Guerrilla 1 | . . . . . . . . . . . . . . . 1 . . Best Kill Streak 18 | . 3 . . . 5 6 2 3 . 1 4 . 4 1 7 18 . Combat Bots Only 10 | . 3 . . . 4 6 1 1 . 1 4 . 4 1 7 10 . Max Kills in Single Turn 5 | . 1 . . . 3 3 1 1 . 1 2 . 4 1 3 5 . Gunslinging . | . . . . . . . . . . . . . . . . . . Exploded 5 | . . . . . 2 3 . . . . 2 . 4 . 3 5 . Melee . | . . . . . . . . . . . . . . . . . . Uniques/NPCs Destroyed . | . . . . . . . . . . . . . . . . . . Combat | -11 -10 -10 -10 -9 -8 -8 -8 -7 -7 -7 -7 -6 -6 -5 -5 -4 -4 -------- Run | Yrd Mat Min Exi Min Mat Gar Mat Fac Gar Sto Gar Fac DSF Fac Gar Fac Upp Hostile Shots Fired 1340 | . 71 . . 15 134 123 26 85 . . 105 . 30 13 159 570 9 Missed 324 | . 19 . . . 30 36 5 18 . . 23 . 9 1 43 137 3 Damage Taken 16516 | . 568 . . 690 1517 1399 231 1006 34 11 880 . 586 224 1458 7774 138 Core 1986 | . 80 . . 118 215 160 14 19 . . 67 . 79 . 76 1020 138 Absorbed by Shields 456 | . . . . . 169 . 4 24 . . . . . . . 259 . Reduced by Siege Mode 720 | . . . . . . . . . . . . . . . 41 679 . Redirected to Shielding 169 | . . . . . . 101 . . . . . . . . . 68 . Ignored by Resistances 2178 | . . . . . . 69 49 210 . . 160 . 126 11 395 1158 . Core Remaining (%) 69 | 100 . . . 20 . . 29 . . . 87 . 90 . 92 . . Volleys Fired 544 | . 45 . . 2 73 68 16 44 8 10 50 . 21 14 55 138 . Largest 4 | . 2 . . 2 2 2 2 2 1 1 1 . 1 2 4 4 . Hottest 417 | . 80 . . 46 98 53 53 121 60 75 75 . 75 136 224 417 . Shots Fired 878 | . 90 . . 4 137 75 31 73 8 10 50 . 21 16 81 282 . Gun 291 | . 90 . . 4 104 27 31 35 . . . . . . . . . Cannon 417 | . . . . . 24 . . 33 8 9 32 . 16 9 53 233 . Launcher 131 | . . . . . 9 48 . . . . 13 . 5 . 25 31 . Special 39 | . . . . . . . . 5 . 1 5 . . 7 3 18 . Kinetic 480 | . 80 . . 4 104 27 31 45 8 9 32 . 16 9 53 62 . Thermal 228 | . 10 . . . 24 . . 23 . . . . . . . 171 . Explosive 131 | . . . . . 9 48 . . . . 13 . 5 . 25 31 . Electromagnetic . | . . . . . . . . . . . . . . . . . . Robot Hit Streak 41 | . 12 . . 2 34 15 14 9 . 5 4 . 6 11 15 41 . Robot Miss Streak 6 | . 1 . . 2 2 3 3 2 . 2 3 . 2 1 3 6 . Penetration Max 1 | . . . . . . . . . . . . . . . 1 1 . Secondary Targets 1 | . . . . . 1 . . . . . . . . . . . . Max Gunslinging Chain 1 | . . . . . 1 . . . . . . . . . . . . Shots Hit Robots 564 | . 68 . . 2 113 31 32 43 . 7 20 . 13 12 26 196 1 Core Hits 476 | . 29 . . . 48 48 15 19 1 2 21 . 12 1 54 226 . Critical Kills 8 | . 1 . . . 1 . 1 . . . . . . . . 5 . Critical Parts Destroyed . | . . . . . . . . . . . . . . . . . . Critical Strikes 25 | . 1 . . . 1 . 1 . . 1 4 . . 1 4 12 . Meltdown 5 | . . . . . . . . . . . . . . . . 5 . Destroy 3 | . 1 . . . 1 . 1 . . . . . . . . . . Blast 17 | . . . . . . . . . . 1 4 . . 1 4 7 . Melee Attacks 12 | . . . . . . . 7 . . . . . . . . 4 1 Thermal 2 | . . . . . . . . . . . . . . . . 2 . Impact . | . . . . . . . . . . . . . . . . . . Slashing 7 | . . . . . . . 7 . . . . . . . . . . Piercing . | . . . . . . . . . . . . . . . . . . Sneak Attacks 4 | . . . . . . . 3 . . . . . . . . . 1 Combat Hostiles . | . . . . . . . . . . . . . . . . . . Follow-up Attacks . | . . . . . . . . . . . . . . . . . . Damage Inflicted 32560 | . 691 16 . 31 2569 2720 798 1368 120 465 2507 . 1709 273 3936 15357 . Guns 3186 | . 669 . . 31 1256 263 494 473 . . . . . . . . . Cannons 12279 | . . . . . 525 . . 834 . 465 1191 . 803 271 1216 6974 . Explosions 16448 | . . . . . 752 2451 . . 4 . 1316 . 906 . 2720 8299 . Melee 287 | . . . . . . . 287 . . . . . . . . . . Ramming 360 | . 22 16 . . 36 6 17 61 116 . . . . 2 . 84 . Kinetic 8947 | . 580 . . 31 1256 263 494 922 . 465 1191 . 803 271 1216 1455 . Thermal 6518 | . 89 . . . 525 . . 385 . . . . . . . 5519 . Explosive 16448 | . . . . . 752 2451 . . 4 . 1316 . 906 . 2720 8299 . Electromagnetic . | . . . . . . . . . . . . . . . . . . Impact . | . . . . . . . . . . . . . . . . . . Slashing 287 | . . . . . . . 287 . . . . . . . . . . Piercing . | . . . . . . . . . . . . . . . . . . Highest Corruption 7 | . . . . . . 3 3 . . . 1 . . . . 7 7 Average Corruption 2 | . . . . . . 2 2 . . . 1 . . . . 3 7 Corruption Purged 3 | . . . . . . . 3 . . . . . . . . . . Corruption Blocked . | . . . . . . . . . . . . . . . . . . Effects 60 | . . . . . . 8 5 . . . 9 . . . . 37 1 Message Errors 8 | . . . . . . 1 . . . . 1 . . . . 6 . Matter Fused 14 | . . . . . . . 2 . . . 2 . . . . 10 . Heat Flow Errors 8 | . . . . . . 1 1 . . . 3 . . . . 3 . Energy Discharges 6 | . . . . . . 2 . . . . . . . . . 4 . Parts Fused 2 | . . . . . . . . . . . 1 . . . . 1 . Data Loss (minor) 15 | . . . . . . 2 1 . . . 1 . . . . 10 1 Data Loss (major) 2 | . . . . . . . 1 . . . 1 . . . . . . Misfires 1 | . . . . . . 1 . . . . . . . . . . . Weapon Failures 4 | . . . . . . 1 . . . . . . . . . 3 . Overload Shots . | . . . . . . . . . . . . . . . . . . Overflow Damage 1202 | . . . . . 41 80 16 57 . 114 134 . 83 75 104 498 . Projectiles 729 | . . . . . . . . 57 . 114 118 . 60 75 31 274 . Explosions 444 | . . . . . 41 80 . . . . 16 . 23 . 73 211 . Melee 29 | . . . . . . . 16 . . . . . . . . 13 . Knockbacks 30 | . . . . . . . 1 3 1 2 5 . 2 2 4 10 . Impact 2 | . . . . . . . 1 . 1 . . . . . . . . Kinetic 28 | . . . . . . . . 3 . 2 5 . 2 2 4 10 . Secondary . | . . . . . . . . . . . . . . . . . . Self-Inflicted Damage 555 | . . . . . 2 248 . . 35 . 36 . . . 15 219 . Shots 24 | . . . . . 1 10 . . 1 . 1 . . . 1 10 . Rammed 35 | . 1 3 . . . 4 1 3 17 . . . . 1 . 5 . Targets Rammed 53 | . 3 3 . . 7 7 1 6 19 . . . . 1 . 6 . Kicked 12 | . 2 . . . 7 3 . . . . . . . . . . . Crushed 6 | . . . . . . . . 3 2 . . . . . . 1 . Highest Temperature 460 | . 72 . . . 65 104 114 370 123 110 314 . 330 102 326 460 . Average Temperature 91 | . 20 . . . 29 36 45 125 41 46 105 . 56 47 89 109 . Received Heat Transfer 3420 | . 267 . . . 806 495 45 69 . 6 165 . 72 9 153 1315 18 Effects 11 | . . . . . . . . 5 . . 4 . . . 1 1 . Shutdowns 1 | . . . . . . . . . . . . . . . . 1 . Energy Bleed 2 | . . . . . . . . 1 . . 1 . . . . . . Interference 5 | . . . . . . . . 2 . . 2 . . . 1 . . Short Circuit 2 | . . . . . . . . 1 . . 1 . . . . . . Damage (minor) 1 | . . . . . . . . 1 . . . . . . . . . Siege Activations 17 | . . . . . . . . . . . . . . . 5 12 . Total Turns 356 | . . . . . . . . . . . . . . . 93 263 . Longest Duration 63 | . . . . . . . . . . . . . . . 41 63 . Robots Corrupted . | . . . . . . . . . . . . . . . . . . Combat Hostiles . | . . . . . . . . . . . . . . . . . . Parts Fried . | . . . . . . . . . . . . . . . . . . Impact Corruptions 1 | . . . . . . . . . . . . . . . . 1 . Robots Melted 5 | . . . . . . . . . . . . . . . . 5 . Combat Hostiles 4 | . . . . . . . . . . . . . . . . 4 . Parts Melted 11 | . . . . . . . . . . . . . . . . 11 . Heat Transferred 6003 | . 200 . . . 777 . . 666 . . . . . . . 4360 . Parts Sabotaged . | . . . . . . . . . . . . . . . . . . Parts Stolen . | . . . . . . . . . . . . . . . . . . Parts Stripped . | . . . . . . . . . . . . . . . . . . Power Chain Reactions . | . . . . . . . . . . . . . . . . . . Alert | -11 -10 -10 -10 -9 -8 -8 -8 -7 -7 -7 -7 -6 -6 -5 -5 -4 -4 ------- Run | Yrd Mat Min Exi Min Mat Gar Mat Fac Gar Sto Gar Fac DSF Fac Gar Fac Upp Peak Influence 2215 | . 207 25 . 15 272 1060 522 112 874 425 1544 815 766 450 1699 2215 . Initial 891 | . . 25 . . 1 176 492 59 30 425 247 810 570 401 173 891 . Average 512 | . 93 10 . 3 78 680 270 49 398 339 891 810 644 338 956 891 . Maximum Alert Level 5 | . 1 . . . 1 3 2 . 3 2 4 3 3 2 5 5 . Low Security (%) 35 | 100 95 100 . 100 87 7 43 100 13 . . . . . 7 3 . Level 1 16 | . 4 . . . 12 21 41 . 41 87 6 . . 48 5 17 . Level 2 17 | . . . . . . 8 14 . 31 12 24 . 75 51 24 21 . Level 3 20 | . . . . . . 61 . . 12 . 48 100 24 . 20 37 . Level 4 7 | . . . . . . . . . . . 20 . . . 29 6 . Level 5 1 | . . . . . . . . . . . . . . . 12 3 . High Security 1 | . . . . . . . . . . . . . . . . 10 . Max Security . | . . . . . . . . . . . . . . . . . . Sterilizations 1 | . . . . . . . . . . . . . 1 . . . . Squads Dispatched 42 | . 3 . . . 3 . . 4 . 4 . . 2 1 . 25 . Investigation 2 | . 2 . . . . . . . . . . . . . . . . Extermination 10 | . . . . . . . . 3 . . . . . 1 . 6 . Reinforcement 15 | . 1 . . . 2 . . 1 . 3 . . 2 . . 6 . Assault 10 | . . . . . . . . . . . . . . . . 10 . Garrison 5 | . . . . . 1 . . . . 1 . . . . . 3 . Intercept . | . . . . . . . . . . . . . . . . . . Searches Triggered . | . . . . . . . . . . . . . . . . . . Construction Impeded 7 | . . . . . 1 . . . . 1 . . . . . 5 . Haulers Reinforced 1 | . . . . . . . . . . 1 . . . . . . . Active Scanning Responses . | . . . . . . . . . . . . . . . . . . Cargo Convoy Interrupts . | . . . . . . . . . . . . . . . . . . Alert ID Control Effect 23 | . . . . . . . . . . 11 6 . 1 1 1 3 . Stealth | -11 -10 -10 -10 -9 -8 -8 -8 -7 -7 -7 -7 -6 -6 -5 -5 -4 -4 --------- Run | Yrd Mat Min Exi Min Mat Gar Mat Fac Gar Sto Gar Fac DSF Fac Gar Fac Upp Distress Signals 9 | . 1 . . . 1 . . . . 3 . . . 1 . 3 . Communications Jammed . | . . . . . . . . . . . . . . . . . . Distress Signals . | . . . . . . . . . . . . . . . . . . Times Spotted 294 | . 29 . . 3 23 25 13 10 . 12 23 . 10 10 19 109 8 Peak Tracking Total 19 | . 6 . . 3 6 6 3 2 . 4 5 . 4 4 6 19 10 Tactical Retreats 10 | . 3 . . . . 3 . 1 . . . . . . . 3 . Traps | -11 -10 -10 -10 -9 -8 -8 -8 -7 -7 -7 -7 -6 -6 -5 -5 -4 -4 ------- Run | Yrd Mat Min Exi Min Mat Gar Mat Fac Gar Sto Gar Fac DSF Fac Gar Fac Upp Traps Triggered 29 | . 1 . . . . . . 3 3 4 8 . 2 . 8 . . Indirectly . | . . . . . . . . . . . . . . . . . . Trap Hack Attempts . | . . . . . . . . . . . . . . . . . . Triggered . | . . . . . . . . . . . . . . . . . . Disarmed . | . . . . . . . . . . . . . . . . . . Reprogrammed . | . . . . . . . . . . . . . . . . . . Reused . | . . . . . . . . . . . . . . . . . . Traps Extracted . | . . . . . . . . . . . . . . . . . . Installed . | . . . . . . . . . . . . . . . . . . Triggered . | . . . . . . . . . . . . . . . . . . Machines | -11 -10 -10 -10 -9 -8 -8 -8 -7 -7 -7 -7 -6 -6 -5 -5 -4 -4 ---------- Run | Yrd Mat Min Exi Min Mat Gar Mat Fac Gar Sto Gar Fac DSF Fac Gar Fac Upp Machines Disabled 40 | . . . . . 1 5 1 . 6 1 9 . . . 10 7 . Max in Single Turn 2 | . . . . . 1 2 1 . 1 1 2 . . . 1 1 . Garrison Relay 11 | . . . . . . 2 . . 3 . 4 . . . 2 . . Phase Generator 2 | . . . . . . . . . 1 . . . . . 1 . . Machines Repaired . | . . . . . . . . . . . . . . . . . . Machines Dismantled . | . . . . . . . . . . . . . . . . . . Machines Sabotaged . | . . . . . . . . . . . . . . . . . . Overloaded Fab Kills . | . . . . . . . . . . . . . . . . . . Hacking | -11 -10 -10 -10 -9 -8 -8 -8 -7 -7 -7 -7 -6 -6 -5 -5 -4 -4 --------- Run | Yrd Mat Min Exi Min Mat Gar Mat Fac Gar Sto Gar Fac DSF Fac Gar Fac Upp Machines Accessed 38 | . 8 2 5 . 3 . 5 2 . 2 2 1 . 2 2 4 . Terminals 23 | . 7 1 . . 1 . 5 . . 1 2 1 . 1 2 2 . Fabricators 1 | . . . . . . . . . . . . . . . . 1 . Repair Stations . | . . . . . . . . . . . . . . . . . . Recycling Units 2 | . 1 . . . . . . 1 . . . . . . . . . Scanalyzers 2 | . . . . . 1 . . . . . . . . . . 1 . Garrison Access 4 | . . . . . 1 . . 1 . 1 . . . 1 . . . Total Hacks 121 | . 28 3 42 . 5 . 11 6 . 3 4 1 . 2 6 10 . Successful 76 | . 14 3 42 . 3 . 2 3 . 2 . 1 . 2 1 3 . Failed 45 | . 14 . . . 2 . 9 3 . 1 4 . . . 5 7 . Catastrophic 11 | . 5 . . . . . 3 . . . 1 . . . . 2 . Database Lockouts . | . . . . . . . . . . . . . . . . . . Manual 22 | . 8 . 1 . . . 5 2 . . . . . . . 6 . Terminals 59 | . 25 2 . . 2 . 11 . . 2 4 1 . 1 6 5 . Fabricators 2 | . . . . . . . . . . . . . . . . 2 . Repair Stations . | . . . . . . . . . . . . . . . . . . Recycling Units 8 | . 3 . . . . . . 5 . . . . . . . . . Scanalyzers 4 | . . . . . 1 . . . . . . . . . . 3 . Garrison Access 5 | . . . . . 2 . . 1 . 1 . . . 1 . . . Terminal Hacks 61 | . 9 3 42 . 1 . 2 . . 1 . 1 . 1 1 . . Record 42 | . . 1 41 . . . . . . . . . . . . . . Prototype ID Bank 1 | . 1 . . . . . . . . . . . . . . . . Open Door 2 | . . 1 . . . . . . . . . . . . 1 . . Open DSF 1 | . . . . . . . . . . . . 1 . . . . . Branch Access Points 4 | . 2 . . . 1 . 1 . . . . . . . . . . Alert Level 1 | . 1 . . . . . . . . . . . . . . . . Unreport Threat 2 | . . . . . . . 1 . . 1 . . . . . . . Locate Traps 1 | . 1 . . . . . . . . . . . . . . . . Dispatch Records 1 | . 1 . . . . . . . . . . . . . . . . Maintenance Status 1 | . 1 . . . . . . . . . . . . . . . . Hauler Manifests 2 | . 1 . . . . . . . . . . . . 1 . . . Registered Components 1 | . 1 . . . . . . . . . . . . . . . . Zone Layout 1 | . . 1 . . . . . . . . . . . . . . . Derelict Proto ID Bank 1 | . . . 1 . . . . . . . . . . . . . . Fabricator Hacks 1 | . . . . . . . . . . . . . . . . 1 . Network Status 1 | . . . . . . . . . . . . . . . . 1 . Repair Station Hacks . | . . . . . . . . . . . . . . . . . . Recycling Unit Hacks 1 | . . . . . . . . 1 . . . . . . . . . Retrieve Components 1 | . . . . . . . . 1 . . . . . . . . . Scanalyzer 3 | . . . . . 1 . . . . . . . . . . 2 . Insert Component 3 | . . . . . 1 . . . . . . . . . . 2 . Garrison Access Hacks 4 | . . . . . 1 . . 1 . 1 . . . 1 . . . Unlock Access 4 | . . . . . 1 . . 1 . 1 . . . 1 . . . Unauthorized Hacks 6 | . 5 . . . . . . 1 . . . . . . . . . Terminals 4 | . 4 . . . . . . . . . . . . . . . . Track 2 | . 2 . . . . . . . . . . . . . . . . Disrupt 2 | . 2 . . . . . . . . . . . . . . . . Fabricators . | . . . . . . . . . . . . . . . . . . Repair Stations . | . . . . . . . . . . . . . . . . . . Recycling Units 2 | . 1 . . . . . . 1 . . . . . . . . . Mask 2 | . 1 . . . . . . 1 . . . . . . . . . Scanalyzers . | . . . . . . . . . . . . . . . . . . Garrison Access . | . . . . . . . . . . . . . . . . . . Data Cores Recovered . | . . . . . . . . . . . . . . . . . . Used . | . . . . . . . . . . . . . . . . . . Hacking Detections 26 | . 6 1 . . 1 . 5 1 . 2 2 . . 2 2 4 . Full Trace Events 1 | . 1 . . . . . . . . . . . . . . . . Feedback Events . | . . . . . . . . . . . . . . . . . . Feedback Blocked . | . . . . . . . . . . . . . . . . . . Robot Schematics Acquired . | . . . . . . . . . . . . . . . . . . Robots Built . | . . . . . . . . . . . . . . . . . . Authchips . | . . . . . . . . . . . . . . . . . . Time . | . . . . . . . . . . . . . . . . . . Total Robot Build Rating . | . . . . . . . . . . . . . . . . . . Part Schematics Acquired . | . . . . . . . . . . . . . . . . . . Parts Built . | . . . . . . . . . . . . . . . . . . Authchips . | . . . . . . . . . . . . . . . . . . Time . | . . . . . . . . . . . . . . . . . . Total Part Build Rating . | . . . . . . . . . . . . . . . . . . Parts Repaired . | . . . . . . . . . . . . . . . . . . Time . | . . . . . . . . . . . . . . . . . . Parts Recycled . | . . . . . . . . . . . . . . . . . . Recycled Matter . | . . . . . . . . . . . . . . . . . . Retrieved Matter . | . . . . . . . . . . . . . . . . . . Retrieved Components . | . . . . . . . . . . . . . . . . . . Parts Scanalyzed 1 | . . . . . . . . . . . . . . . . 1 . Part Schematics Acquired . | . . . . . . . . . . . . . . . . . . Parts Damaged . | . . . . . . . . . . . . . . . . . . Bothacking | -11 -10 -10 -10 -9 -8 -8 -8 -7 -7 -7 -7 -6 -6 -5 -5 -4 -4 ------------ Run | Yrd Mat Min Exi Min Mat Gar Mat Fac Gar Sto Gar Fac DSF Fac Gar Fac Upp Used RIF Installer 4 | . . . . . . 1 . . 1 . 1 . . . 1 . . Patrol Navigation 1 | . . . . . . . . . . . . . . . 1 . . Alert ID Control 1 | . . . . . . . . . 1 . . . . . . . . Program Shield 1 | . . . . . . . . . . . 1 . . . . . . Robots Hacked 25 | . . . . . . . . 2 . 1 4 . . 6 2 9 1 Non-combat 7 | . . . . . . . . . . . . . . 4 . 2 1 Combat 18 | . . . . . . . . 2 . 1 4 . . 2 2 7 . Robot Hacks Applied 36 | . . . . . . . . 3 . 1 4 . . 6 3 18 1 parse_system 2 | . . . . . . . . . . . . . . . 1 . 1 find_chute 1 | . . . . . . . . . . . . . . . . 1 . map_walls 1 | . . . . . . . . . . . . . . 1 . . . drop_inventory 1 | . . . . . . . . . . . . . . 1 . . . purge_threat 5 | . . . . . . . . . . . . . . . . 5 . find_terminals 1 | . . . . . . . . . . . . . . . . 1 . reprogram_traps 1 | . . . . . . . . . . . . . . . . 1 . block_reporting 2 | . . . . . . . . . . . . . . . . 2 . map_route 1 | . . . . . . . . . . . . . . 1 . . . mark_security 1 | . . . . . . . . . . . . . . 1 . . . find_garrison 2 | . . . . . . . . 1 . . . . . . . 1 . overload_power 1 | . . . . . . . . . . . . . . . . 1 . amplify_resonance 2 | . . . . . . . . . . . . . . . . 2 . disable_weapons 1 | . . . . . . . . 1 . . . . . . . . . go_dormant 2 | . . . . . . . . . . . . . . . . 2 . overwrite_iff 1 | . . . . . . . . . . . . . . . 1 . . formatsys_high 11 | . . . . . . . . 1 . 1 4 . . 2 1 2 . Relay Couplers Released 48 | . . . . . . 8 . . 12 . 18 . . . 10 . . Machine Destruction 48 | . . . . . . 8 . . 12 . 18 . . . 10 . . Attached 17 | . . . . . . . . 1 . 1 4 . . 2 4 4 1 Fabnet Peak Effective % . | . . . . . . . . . . . . . . . . . . Robots Rewired 2 | . . . . . . . . . 2 . . . . . . . . Allies Hacked 2 | . . . . . . . . 1 . 1 . . . . . . . Hacks Repelled . | . . . . . . . . . . . . . . . . . . Allies | -11 -10 -10 -10 -9 -8 -8 -8 -7 -7 -7 -7 -6 -6 -5 -5 -4 -4 -------- Run | Yrd Mat Min Exi Min Mat Gar Mat Fac Gar Sto Gar Fac DSF Fac Gar Fac Upp Total Allies 19 | . . 3 . . . . . 1 2 1 4 . . 2 4 2 . Largest Group 4 | . . 3 3 3 . . . 1 3 4 3 2 2 1 2 1 . Highest-Rated Group 117 | . . 40 40 40 . . . 32 85 117 96 64 64 49 107 49 . Highest-Rated Ally 76 | . . 16 16 16 . . . 32 32 32 32 32 32 49 76 49 . Total Orders . | . . . . . . . . . . . . . . . . . . Ally Attacks 101 | . . . . 1 . . . 3 . 28 17 . 15 8 17 12 . Total Damage 3410 | . . . . 17 . . . 155 . 968 550 . 426 386 534 374 . Kills 27 | . . . . . . . . . . 12 6 . 1 1 4 3 . Allies Corrupted 1 | . . . . . . . . . . . . . . 1 . . . Allies Melted . | . . . . . . . . . . . . . . . . . . Intel | -11 -10 -10 -10 -9 -8 -8 -8 -7 -7 -7 -7 -6 -6 -5 -5 -4 -4 ------- Run | Yrd Mat Min Exi Min Mat Gar Mat Fac Gar Sto Gar Fac DSF Fac Gar Fac Upp Robot Analysis Total . | . . . . . . . . . . . . . . . . . . Derelict Logs Recovered 4 | . . 2 . 2 . . . . . . . . . . . . . Drone Launches . | . . . . . . . . . . . . . . . . . . Drone Recoveries . | . . . . . . . . . . . . . . . . . . Exploration | -11 -10 -10 -10 -9 -8 -8 -8 -7 -7 -7 -7 -6 -6 -5 -5 -4 -4 ------------- Run | Yrd Mat Min Exi Min Mat Gar Mat Fac Gar Sto Gar Fac DSF Fac Gar Fac Upp Turns Passed 18153 | 3 1281 944 747 263 1048 1070 1422 1648 1225 277 2637 9 304 780 2046 2375 74 Spaces Moved 7916 | 1 558 530 310 103 514 503 739 616 496 102 1048 4 100 231 699 1221 141 Core 362 | . . . . . . 34 7 . . . . . . . . 180 141 Treads 6196 | 1 387 530 310 103 131 . 397 616 496 102 1048 4 100 231 699 1041 . Legs 929 | . 77 . . . 383 469 . . . . . . . . . . . Wheels 429 | . 94 . . . . . 335 . . . . . . . . . . Hover . | . . . . . . . . . . . . . . . . . . Flight . | . . . . . . . . . . . . . . . . . . Fastest Speed 50 | 160 125 160 240 240 120 120 100 225 225 225 225 225 225 233 152 50 50 Average Speed 193 | 160 187 174 240 240 134 173 167 225 225 225 229 225 229 307 241 138 50 Slowest Speed 650 | 160 240 240 240 240 240 500 650 225 225 225 305 225 313 313 465 225 50 Overloaded Moves . | . . . . . . . . . . . . . . . . . . Propulsion Burnouts . | . . . . . . . . . . . . . . . . . . Robots Hopped . | . . . . . . . . . . . . . . . . . . Cave-ins Triggered . | . . . . . . . . . . . . . . . . . . Exploration Rate (%) 49 | 2 73 98 66 27 30 51 55 12 78 26 79 . 83 9 95 31 31 Regions Visited 17 Branch Regions 5 Pre-discovered Areas 2 | . . 1 1 . . . . . . . . . . . . . . Known Exits Taken 7 | . 1 . . . 1 . 1 1 . 1 . 1 . 1 . . . Unknown Exits Taken 5 | 1 . 1 1 1 . . . . . . . . . . . 1 . Scrap Searched 4 | . . 2 . 2 . . . . . . . . . . . . . Spaces Dug 229 | . . . . . . 19 . . . . 33 . 36 2 96 43 . Terrain Destroyed 1460 | . . . . . 29 144 . 15 149 4 141 . 58 3 392 525 . Melee . | . . . . . . . . . . . . . . . . . . Projectile 120 | . . . . . 3 1 . 15 . 4 9 . 3 3 32 50 . AOE 1340 | . . . . . 26 143 . . 149 . 132 . 55 . 360 475 . Terrain Rammed . | . . . . . . . . . . . . . . . . . . Walls Destroyed . | . . . . . . . . . . . . . . . . . . Machines Disabled . | . . . . . . . . . . . . . . . . . . Actions | -11 -10 -10 -10 -9 -8 -8 -8 -7 -7 -7 -7 -6 -6 -5 -5 -4 -4 --------- Run | Yrd Mat Min Exi Min Mat Gar Mat Fac Gar Sto Gar Fac DSF Fac Gar Fac Upp Total 9863 | 2 721 548 314 115 728 612 882 792 590 136 1214 5 144 285 979 1651 145 Wait 783 | . 51 10 4 8 90 11 53 74 5 15 75 . 8 28 164 187 . Move 7895 | . 557 529 309 102 513 501 738 615 494 101 1046 3 99 230 697 1220 141 Hop . | . . . . . . . . . . . . . . . . . . Pick Up 148 | . 22 2 1 1 10 7 20 16 21 . 8 . 3 6 10 21 . Fast Attach 49 | . 8 . . . 5 1 15 2 2 . 2 . . . 7 7 . Attach 73 | . 4 . . 1 13 3 1 10 1 . 3 2 4 2 6 20 3 Detach 5 | . . . . . 1 . . 1 . . . . . . 1 2 . Swap 101 | 2 8 1 . 1 9 4 10 4 5 1 8 . 4 3 12 29 . Drop 138 | . 23 3 . . 7 6 21 14 24 . 8 . 1 1 13 17 . Fire 544 | . 45 . . 2 73 68 16 44 8 10 50 . 21 14 55 138 . Melee 12 | . . . . . . . 7 . . . . . . . . 4 1 Ram 4 | . . . . . . 4 . . . . . . . . . . . Kick 12 | . 2 . . . 7 3 . . . . . . . . . . . Crush 37 | . 1 3 . . . . 1 6 19 . . . . 1 . 6 . Escape Stasis 46 | . . . . . . . . 6 . 8 14 . 4 . 14 . . Rewire 16 | . . . . . . 4 . . 11 1 . . . . . . . Trap . | . . . . . . . . . . . . . . . . . . Miscellaneous . | . . . . . . . . . . . . . . . . . . Route ------- -11/Scrapyard -10/Materials (discovered 2 exits: [*Mat] / *Min) -10/Mines (discovered 3 exits: [*Mat x2] / *Exi) -10/Exiles -9/Mines -8/Materials (discovered 3 exits: Fac x2 / Gar) -8/Garrison -8/Materials -7/Factory (discovered 3 exits: *Fac / [*Low] / Gar) -7/Garrison (discovered 2 exits: *Sto x2) -7/Storage -7/Garrison (discovered 3 exits: *Fac x3) -6/Factory -6/DSF -5/Factory (discovered 2 exits: [*Upp] / Gar) -5/Garrison (discovered 3 exits: *Fac x3) -4/Factory -4/Upper Caves History --------- Turn | Location | Event 4 | -11/Scrapyard | Discovered new exit (range 0) 4 | -11/Scrapyard | Entered Materials 165 | -10/Materials | Discovered new exit (range 10) 314 | -10/Materials | Build established: Mutant 749 | -10/Materials | Discovered new exit (range 5) 897 | -10/Materials | Identified exit to Mines 1285 | -10/Materials | Entered Mines 1326 | -10/Mines | Met a Derelict bent on vengeance 1371 | -10/Mines | Found a hidden stash of uninstalled traps 1405 | -10/Mines | Learned Materials emergency access door positions 1509 | -10/Mines | Discovered new exit (range 6) 1520 | -10/Mines | Assisted by bots powering up and referring to "LRC-V3" 1759 | -10/Mines | Found the Drone Emporium 1765 | -10/Mines | Found Prototype Device 2065 | -10/Mines | Discovered new exit (range 9) 2209 | -10/Mines | Deemed a non-threat by the Exiles lab entrance 2209 | -10/Mines | Discovered new exit (range 5) 2229 | -10/Mines | Entered Exiles 2229 | -10/Exiles | Accompanied by 3 allies 2285 | -10/Exiles | Met 8R-AWN 2328 | -10/Exiles | Met EX-HEX 2395 | -10/Exiles | Met EX-BIN 2582 | -10/Exiles | Aligned with FarCom system 2584 | -10/Exiles | Given EX-Vault access code 2639 | -10/Exiles | Opened EX-Vault 2656 | -10/Exiles | Found Superbattery 2727 | -10/Exiles | Warned to stay clear of 0b10 Research branches 2794 | -10/Exiles | Met EX-DEC 2813 | -10/Exiles | Learned location of Zion (-6) 2952 | -10/Exiles | Discovered new exit (range 10) 2976 | -10/Exiles | Left Exiles lab with Superbattery 2976 | -10/Exiles | Entered Mines 2976 | -9/Mines | Accompanied by 3 allies 2977 | -9/Mines | Assembled infested the area 2982 | -9/Mines | Assisted by a Guerilla fighting off Assembled 3062 | -9/Mines | Core integrity fell below 50% 3081 | -9/Mines | Lost 4 allies 3197 | -9/Mines | Discovered new exit (range 9) 3202 | -9/Mines | Learned 8 Materials zone layouts 3204 | -9/Mines | Learned Materials security intel 3239 | -9/Mines | Entered Materials 3239 | -8/Materials | Evolved 4 slots: Propulsion x2, Utility x2 3240 | -8/Materials | Identified exit to Factory 3266 | -8/Materials | Identified Decoy Drone Bay 3537 | -8/Materials | Lost 5 parts (1p2n1u1w) 4005 | -8/Materials | Build established: Scavenger-Mutant 4191 | -8/Materials | Garrison activated, responded to threat 4263 | -8/Materials | Lost 4 parts (2n1u1w) 4286 | -8/Materials | Identified exit to Garrison 4287 | -8/Materials | Entered Garrison 4347 | -8/Garrison | Installed Relay Interface Framework 4362 | -8/Garrison | Triggered checkpoint 4396 | -8/Garrison | Garrison Relay disabled 4575 | -8/Garrison | Triggered checkpoint 4599 | -8/Garrison | Triggered checkpoint 4644 | -8/Garrison | Triggered checkpoint 4697 | -8/Garrison | Triggered checkpoint 4700 | -8/Garrison | Core integrity fell below 50% 4888 | -8/Garrison | Discovered new exit (range 10) 4932 | -8/Garrison | Triggered checkpoint 4997 | -8/Garrison | Build established: Mutant 5129 | -8/Garrison | Triggered checkpoint 5219 | -8/Garrison | Lost 7 parts (2n3u2w) 5357 | -8/Garrison | Entered Materials 6281 | -8/Materials | Discovered exit to Factory (range 16) 6779 | -8/Materials | Entered Factory 6779 | -7/Factory | Evolved 2 slots: Utility x1, Weapon x1 7075 | -7/Factory | Build established: Tank 8106 | -7/Factory | Discovered new exit (range 14) 8271 | -7/Factory | Discovered new exit (range 5) 8377 | -7/Factory | Identified exit to Garrison 8427 | -7/Factory | Entered Garrison 8427 | -7/Garrison | Discovered recently destroyed garrison 8427 | -7/Garrison | Accompanied by 1 ally 8598 | -7/Garrison | Phase Generator disabled 8881 | -7/Garrison | Discovered new exit (range 10) 8967 | -7/Garrison | Expanded RIF knowledge: Alert ID Control 9012 | -7/Garrison | Garrison Relay disabled 9237 | -7/Garrison | Garrison Relay disabled 9408 | -7/Garrison | Garrison Relay disabled 9457 | -7/Garrison | Build established: Bothacker-Tank 9589 | -7/Garrison | Discovered new exit (range 12) 9652 | -7/Garrison | Entered Storage 9652 | -7/Storage | Accompanied by 3 allies 9806 | -7/Storage | Garrison activated, responded to threat 9925 | -7/Storage | Identified exit to Garrison 9929 | -7/Storage | Entered Garrison 9929 | -7/Garrison | Accompanied by 3 allies 10054 | -7/Garrison | Lost 3 allies 10092 | -7/Garrison | Triggered checkpoint 10105 | -7/Garrison | Triggered checkpoint 10301 | -7/Garrison | Discovered new exit (range 10) 10375 | -7/Garrison | Triggered checkpoint 10451 | -7/Garrison | Garrison Relay disabled 10607 | -7/Garrison | Triggered checkpoint 10711 | -7/Garrison | Discovered new exit (range 8) 10746 | -7/Garrison | Triggered checkpoint 11128 | -7/Garrison | Discovered new exit (range 8) 11148 | -7/Garrison | Triggered checkpoint 11205 | -7/Garrison | Garrison Relay disabled 11557 | -7/Garrison | Garrison Relay disabled 11765 | -7/Garrison | Expanded RIF knowledge: Program Shield 12280 | -7/Garrison | Triggered checkpoint 12339 | -7/Garrison | Garrison Relay disabled 12566 | -7/Garrison | Entered Factory 12566 | -6/Factory | Accompanied by 2 allies 12566 | -6/Factory | Evolved 2 slots: Utility x2 12574 | -6/Factory | Identified exit to DSF 12575 | -6/Factory | Entered DSF 12575 | -6/DSF | Accompanied by 2 allies 12618 | -6/DSF | Additional patrols routed to DSF 12768 | -6/DSF | Lost 4 parts (1p1n1u1w) 12808 | -6/DSF | Sterilization system engaged 12828 | -6/DSF | Ambient heat levels rising (+10) 12843 | -6/DSF | Ambient heat levels rising (+10) 12848 | -6/DSF | Discovered new exit (range 14) 12858 | -6/DSF | Ambient heat levels rising (+10) 12873 | -6/DSF | Ambient heat levels rising (+10) 12879 | -6/DSF | Entered Factory 12879 | -5/Factory | Evolved 2 slots: Utility x1, Weapon x1 13495 | -5/Factory | Discovered new exit (range 10) 13544 | -5/Factory | Identified exit to Garrison 13659 | -5/Factory | Entered Garrison 13786 | -5/Garrison | Triggered checkpoint 13819 | -5/Garrison | Garrison Relay disabled 13912 | -5/Garrison | Triggered checkpoint 13917 | -5/Garrison | Spotted B-75 Beast 13929 | -5/Garrison | Triggered checkpoint 13953 | -5/Garrison | Destroyed 7 combat bots 14029 | -5/Garrison | Lost 3 parts (1n1u1w) 14407 | -5/Garrison | Triggered checkpoint 14749 | -5/Garrison | Discovered new exit (range 9) 14764 | -5/Garrison | Build established: Bothacker-Gunner 14876 | -5/Garrison | Triggered checkpoint 14945 | -5/Garrison | Discovered new exit (range 14) 15002 | -5/Garrison | Expanded RIF knowledge: Patrol Navigation 15060 | -5/Garrison | Phase Generator disabled 15091 | -5/Garrison | Triggered checkpoint 15190 | -5/Garrison | Garrison Relay disabled 15305 | -5/Garrison | Rescued a captive Derelict 15308 | -5/Garrison | Rescued a captive Derelict 15499 | -5/Garrison | Triggered checkpoint 15594 | -5/Garrison | Discovered new exit (range 15) 15705 | -5/Garrison | Entered Factory 15705 | -4/Factory | Evolved 2 slots: Propulsion x2 16397 | -4/Factory | Found Prototype Launcher 16397 | -4/Factory | Identified Scatter Rocket Array 16514 | -4/Factory | Discovered new exit (range 13) 16955 | -4/Factory | First assault squad dispatched 17502 | -4/Factory | Build established: Tank 17823 | -4/Factory | Lost 7 parts (3n1u3w) 17834 | -4/Factory | High security lockdown imminent 17855 | -4/Factory | Destroyed 10 combat bots 17914 | -4/Factory | High security lockdown engaged 17991 | -4/Factory | Released all parts (2) 17992 | -4/Factory | Core integrity fell below 50% 18005 | -4/Factory | Core integrity fell below 20% 18022 | -4/Factory | Lost 18 parts (4p3n7u4w) 18080 | -4/Factory | Entered Upper Caves 18091 | -4/Upper Caves | Spotted B-86 Titan 18154 | -4/Upper Caves | Destroyed by S-27 Virus with Autogun Last Messages --------------- payload. 17999_ P-70 Sage unfolds itself. 17999_ I-47 Archangel unfolds itself. 18004_ System corrupted: Matter fused (-9). 18021_ Acquired 9 matter. 18027_ System corrupted: Component data lost. 18034_ ALERT: Assault forces dispatched. 18054_ System corrupted: Matter fused (-6). LOCATION=UNKNOWN GOAL=ESCAPE 18111_ Penetrated by Slug. 18111_ Slug penetrates Wall. 18133_ System corrupted: Component data lost. 18133_ Acquired 2 matter. 18135_ Sneak attack on 3K-CND(k). 18135_ Jacked 3K-CND(k)... >>parse_system Reading system data... 18153_ G-73 Enforcer: "INCOMING HOSTILES. DEFEND SHIPMENT RENDEZVOUS PERIMETER." Map ----- +----------------------------------------------------+ | ?????????????????????????????????????????????????? | | ?????????????????????????????????????????????????? | | ?????????????????????????????????????????????????? | | ?????????????????????????????????????????????????? | | ?????????????????????????????????????????????????? | | ?????????????????????????????????????????????????? | | ?????????????????????????????????????????????????? | | ?????????????????????????????????????????????????? | | ?????????????????# ??????????????????????????????? | | ????????????????## ?????????????????????????????? | | ????????????????# ?????????????????????????????? | | ???????????????## ????????????????????????????? | | ???????????? ## ????????????????????????????? | | ????????????? ##??????????????????????????? | | ?????????????? #????????????????? ???????? | | ???????????????# ##??????????????? ???????? | | ???????????????## ######????####?? #??????? | | ???????????????? #????? ## ##?????? | | ?????????????????? #????? ????? | | ???????????????????? #????? ????? | | ?????????????????????? #?????# ?????? | | ???????????????????????# ######## #?????? | | ?????????????????????### # ## ###???? | | ??????????????????####s # ## #???? | | ??????????????????# s # " " #???? | | ??????????????????#ss @ "" """ ## #???? | | ??????????????????# ### "" """" ## #???? | | ??????????????????# #?### " "" ## ##??? | | ?????????????????? #???# # ## #??? | | ????????????????? #??## ## #??? | | ???????????????? #??# #?## ##?? | | ??????????????? #??# #?# ### ### | | ?????????????? ##??## ### ####?# # | | ????????????? ?????# ##????## | | ????????????# ????## ###??????## | | ????????????# ### ????# ## ##?????????## | | ????????????##??# ???# #####???????????# | | ????????????????# ??# #??????????????# | | ????????????????# ??## #????????????? | | ????????????????##????# ????????????# | | ??????????????????????# ### #?????????? | | ??????????????????????##??# #???????? | | ?????????????????????????? ??????? ### | | ?????????????????????????? ???????# #??## | | ?????????????????????????? ??????## ????? | | ??????????????????????????### ???????# ????? | | ?????????????????????????????# ??????# ????? | | ??????????????????????????????# ???????? ????? | | ???????????????????????????????#??????????? ?????? | | ?????????????????????????????????????????????????? | +----------------------------------------------------+ Best States ------------- Heat Dissipation 95 Coolant Potential 100 Energy Generation 25 Energy Capacity 1660 Matter Stores 300 Matter Capacity 300 Sight Range 16 Robot Scan Range 14 Terrain Scan Density 10 Armor Coverage 1050 Resistance: KI 25 Resistance: TH 20 Core Shielding 30 Power Shielding 66 Propulsion Shielding 66 Phase Shifting 5 Evasion (%) 55 Targeting Accuracy 8 Target Analysis 5 Core Analysis 6 Recoil Reduction 6 Kinecelleration 40 Relay Coupler Types 3 Relay Coupler Value 60 Item Schematics ----------------- None Robot Schematics ------------------ None Fabricated ------------ Nothing Alien Tech Used ----------------- None Achievements -------------- None Challenges ------------ None Game ------ Seed FusionPropulsionWand Manual? 0 Play Time 02:41:18 Cumulative 128.5 hours Start 2024.04.08 @ 13:29:14 End 2024.04.08 @ 16:22:24 Sessions 1 Manual Loads 0 Difficulty Rogue Special Mode None Game No. 59 Rogue 57 Adventurer 2 Explorer 0 Win Type - Total 3 Types 3/0/0/0/0/0/0/0/0 Lore% 55 Gallery% 67 Achievement% 54 Wizard Run 0 Options --------- Layout 2 ASCII 0 Keyboard 0 Movement Numpad Keybinds 0 Fullscreen 2 Font 32/SmallcapsGlow Map View 50x44 Zoom Use 0% Tactical HUD 1 Map Filters NONE Filters NONE Steam 1 RUN: 05c7ea63-a8e9-4dab-bc8e-9218c53f5aa5